Cogmind - Beta 16 @@@ ROGUE MODE // 2025.10.29 @ 23:23:05 Player: E102-TIDE Result: Destroyed by G-47 Trooper with Particle Gun Performance ------------- Evolutions (3) 1500 Regions Visited (5) 1000 Robots Destroyed (79) 395 Value Destroyed (2587) 2587 Prototype IDs (0) 0 Alien Tech Used (0) 0 Bonus (0) 0 TOTAL SCORE: 5482 Bonus ------- None Cogmind --------- Core Integrity 0/700 Matter 254/300 Energy 100/100 System Corruption 3% Temperature Danger (455) Movement Core (200) Ox3 Location -7/Factory Parts ------- > --- POWER (1) -------- Micro Nuclear Core > --- PROPULSION (3) --- (None) > --- UTILITY (5) ------ Hardened Light Armor Plating > --- WEAPON (4) ------- (None) > --- INVENTORY (5) ---- (None) Peak State ------------ > --- POWER ------------ Light Angular Momentum Engine > --- PROPULSION ------- Improved Carbon-fiber Leg Improved Carbon-fiber Leg Improved Carbon-fiber Leg > --- UTILITY ---------- Advanced Heat Sink Small Storage Unit ECM Suite Reaction Control System Recalibrator > --- WEAPON ----------- Shock Rifle Ion Cannon Gauss Cannon Gauss Cannon > --- INVENTORY -------- Light Ion Engine Light Deuterium Engine Light Nuclear Core Light Treads Advanced Treads Improved Light Armor Plating Shock Rifle [Rating: 46] Favorites ----------- Power Light Angular Momentum Engine Engine Light Angular Momentum Engine Power Core Light Nuclear Core Propulsion Aluminum Leg Treads Advanced Treads Leg Aluminum Leg Wheel Wheel Flight Unit Flight Unit Utility Small Storage Unit Device ECM Suite Storage Small Storage Unit Processor Targeting Computer Protection Hardened Light Armor Plating Weapon Gauss Cannon Energy Gun Shock Rifle Energy Cannon Beam Cannon Ballistic Gun Light Assault Rifle Ballistic Cannon Gauss Cannon Launcher Grenade Launcher Build | -11 -10 -9 -9 -8 -7 ------- Run | Yrd Mat Mat Min Mat Fac Slots Evolved 6 | . . 2 . 2 2 Power . | . . . . . . Propulsion 1 | . . . . . 1 Utility 3 | . . 1 . 1 1 Weapon 2 | . . 1 . 1 . Parts Attached 76 | 6 7 12 9 16 26 Power 9 | 1 . 2 1 1 4 Engine 7 | 1 . 2 1 1 2 Core 2 | . . . . . 2 Reactor . | . . . . . . Propulsion 26 | 2 2 5 4 4 9 Treads 2 | . . . . . 2 Leg 18 | 2 2 2 2 3 7 Wheel 1 | . . . . 1 . Hover . | . . . . . . Flight 5 | . . 3 2 . . Utility 17 | 1 2 3 1 4 6 Device 8 | 1 . 2 . 2 3 Storage 2 | . 2 . . . . Processor 1 | . . . 1 . . Hackware . | . . . . . . Protection 6 | . . 1 . 2 3 Artifact . | . . . . . . Weapon 24 | 2 3 2 3 7 7 Energy Gun 8 | 2 1 . . 1 4 Energy Cannon 6 | . 1 1 1 3 . Ballistic Gun 2 | . . 1 1 . . Ballistic Cannon 6 | . . . . 3 3 Launcher 2 | . 1 . 1 . . Special Weapon . | . . . . . . Impact Weapon . | . . . . . . Slashing Weapon . | . . . . . . Piercing Weapon . | . . . . . . Special Melee Weapon . | . . . . . . Unidentified Prototypes . | . . . . . . Parts Lost 46 | . . 4 4 7 31 Power 5 | . . 1 . 1 3 Propulsion 12 | . . 1 1 2 8 Utility 14 | . . 1 2 1 10 Weapon 15 | . . 1 1 3 10 Highest Loss Streak 6 | . . 2 4 3 6 To Critical Strikes . | . . . . . . Average Backups 4 | 2 5 7 3 5 3 Power 1 | . 1 . . 2 1 Propulsion . | 1 1 1 . . . Utility 1 | . 1 2 1 . . Weapon 1 | . 1 1 1 1 . Tool/Special . | . . . . . . Unused Backups 9 | . 2 2 1 2 2 Power 3 | . . 1 . . 2 Propulsion 5 | . 2 . 1 2 . Utility . | . . . . . . Weapon . | . . . . . . Tool/Special 1 | . . 1 . . . Average Slot Usage (%) 83 | . 98 95 80 95 63 Engine 7 | . 14 10 11 8 2 Leg 16 | . 28 18 3 17 14 Flight 1 | . . 3 16 . . Device 16 | . 14 12 17 21 13 Storage 6 | . 13 9 . 9 1 Protection 4 | . . 8 . 3 5 Energy Gun 7 | . 22 8 . 3 7 Energy Cannon 10 | . 1 19 16 16 1 Ballistic Gun 1 | . . . 7 2 . Ballistic Cannon 7 | . . . . 12 8 Launcher 1 | . 3 4 1 . . Peak Build Rating 46 | 6 7 10 11 35 46 Average Rating 19 | 3 6 8 8 29 22 On Entrance 10 | . 6 7 9 10 33 Avg Prop Armor Cover (%) . | . . . . . . Naked Turns . | . . . . . . Heaviest Build 46 | 6 14 21 18 46 42 Greatest Support 54 | 20 20 20 23 23 54 Greatest Overweight (x) 6 | . . 1 2 4 6 Average Overweight (x) . | . . . . 1 . Largest Inventory Capacity 20 | 5 20 8 8 8 8 Average Capacity 6 | 5 7 7 5 8 5 Most Carried 8 | 5 8 8 5 8 8 Average Carried 4 | 2 5 7 3 5 3 Final Capacity 8 | 5 8 5 8 8 5 Final Carried 8 | 4 8 5 . 7 . Class Distribution -------------------- 28% | Mutant 27% | Scavenger-Gunner 23% | Scavenger-Tank 7% | Tank 6% | Scavenger-Mutant 6% | Gunner Dominant Class ---------------- Mutant | -10/Materials Scavenger-Tank | -9/Materials Scavenger-Gunner | -9/Mines Scavenger-Gunner | -8/Materials Mutant | -7/Factory Resources | -11 -10 -9 -9 -8 -7 ----------- Run | Yrd Mat Mat Min Mat Fac Matter Collected 1947 | 260 61 221 104 577 724 Remotely . | . . . . . . Salvage Created 2407 | 39 347 537 168 716 600 Parts 145 | 4 22 44 10 38 27 Haulers Intercepted . | . . . . . . Recyclers Shooed . | . . . . . . Parts Field Recycled . | . . . . . . Retrieved Matter . | . . . . . . Parts Self-Destructed . | . . . . . . Prevented . | . . . . . . Parts Restored . | . . . . . . Kills | -11 -10 -9 -9 -8 -7 ------- Run | Yrd Mat Mat Min Mat Fac Combat Hostiles Destroyed 69 | 1 11 19 6 13 19 Guns 18 | 1 7 3 1 1 5 Cannons 42 | . . 12 4 12 14 AOE 9 | . 4 4 1 . . Classes Destroyed 10 | 1 2 2 1 3 1 Worker 1 | . . . . 1 . Builder 2 | . . 1 . 1 . Recycler 1 | . . . . 1 . Mechanic 1 | . . . . 1 . Watcher 5 | . 1 2 . 2 . Swarmer 20 | . 3 11 3 . 3 Grunt 40 | 1 8 7 2 11 11 Duelist 2 | . . . 1 . 1 Sentry 5 | . . 1 . 2 2 Programmer 2 | . . . . . 2 Best Kill Streak 9 | 1 3 9 3 6 5 Combat Bots Only 8 | 1 3 8 3 3 5 Max Kills in Single Turn 3 | 1 2 3 1 2 1 Gunslinging 1 | . 1 . . . . Exploded 2 | . 2 2 1 . . Melee . | . . . . . . Uniques/NPCs Destroyed . | . . . . . . Combat | -11 -10 -9 -9 -8 -7 -------- Run | Yrd Mat Mat Min Mat Fac Hostile Shots Fired 688 | 3 42 87 50 111 395 Missed 226 | 1 10 29 20 32 134 Hits 462 | 2 32 58 30 79 261 Melee 12 | . . . 8 . 4 Projectile 450 | 2 32 58 22 79 257 Critical Strikes 13 | . . . 4 2 7 Damage Taken 6647 | 22 364 531 484 1338 3908 Core 1236 | . 80 46 172 234 704 Absorbed by Shields . | . . . . . . Redirected to Shielding 50 | . . 50 . . . Core Remaining (%) 67 | 100 68 . 45 57 . Volleys Fired 229 | 2 31 36 20 53 87 Largest 4 | 2 2 3 3 4 4 Hottest 240 | 80 80 160 140 240 190 Shots Fired 506 | 4 56 97 31 147 171 Gun 188 | 4 52 25 7 18 82 Cannon 308 | . . 68 22 129 89 Launcher 10 | . 4 4 2 . . Special . | . . . . . . Kinetic 182 | . . 2 7 89 84 Thermal 259 | 4 42 68 19 52 74 Explosive 10 | . 4 4 2 . . Electromagnetic 55 | . 10 23 3 6 13 Robot Hit Streak 11 | 3 7 11 5 10 8 Robot Miss Streak 5 | . 3 5 2 5 5 Penetration Max 1 | . . . . 1 1 Secondary Targets 2 | . 2 . . . . Max Gunslinging Chain 1 | . 1 . . . . Shots Hit Robots 270 | 3 35 51 17 72 92 Core Hits 135 | 2 24 26 7 34 42 Critical Kills . | . . . . . . Critical Parts Destroyed . | . . . . . . Critical Strikes 14 | . . . 1 5 8 Burn 4 | . . . . . 4 Blast 9 | . . . . 5 4 Corrupt 1 | . . . 1 . . Melee Attacks . | . . . . . . Impact . | . . . . . . Slashing . | . . . . . . Piercing . | . . . . . . Sneak Attacks . | . . . . . . Combat Hostiles . | . . . . . . Follow-up Attacks . | . . . . . . Damage Inflicted 6487 | 33 621 1161 327 1981 2364 Guns 1452 | 33 385 224 32 136 642 Cannons 4234 | . . 610 265 1796 1563 Explosions 790 | . 236 327 30 49 148 Melee . | . . . . . . Ramming 11 | . . . . . 11 Kinetic 2652 | . . 8 32 1118 1494 Thermal 2635 | 33 293 610 194 756 749 Explosive 593 | . 236 327 30 . . Electromagnetic 596 | . 92 216 71 107 110 Impact . | . . . . . . Slashing . | . . . . . . Piercing . | . . . . . . Highest Corruption 4 | . . . . 4 3 Average Corruption 3 | . . . . 3 2 Corruption Purged . | . . . . . . Corruption Blocked . | . . . . . . Effects 28 | . . . . 11 17 Message Errors 4 | . . . . 1 3 Matter Fused 9 | . . . . 5 4 Heat Flow Errors 6 | . . . . 2 4 Energy Discharges 2 | . . . . 1 1 Parts Rejected 1 | . . . . . 1 Parts Fused 1 | . . . . . 1 Data Loss (minor) 3 | . . . . 2 1 Data Loss (major) 1 | . . . . . 1 Alerts 1 | . . . . . 1 Overload Shots . | . . . . . . Overflow Damage 168 | . . 22 8 63 75 Projectiles 105 | . . 22 8 50 25 Explosions 63 | . . . . 13 50 Melee . | . . . . . . Knockbacks 21 | . . . . 12 9 Impact . | . . . . . . Kinetic 20 | . . . . 12 8 Secondary 1 | . . . . . 1 Self-Inflicted Damage 208 | . . . . 48 160 Shots 5 | . . . . 1 4 Rammed 1 | . . . . . 1 Targets Rammed 4 | . . . . . 4 Kicked 3 | . . . . . 3 Crushed . | . . . . . . Highest Temperature 475 | 42 8 448 283 475 475 Average Temperature 115 | 23 2 125 85 135 112 Received Heat Transfer 2952 | 12 171 96 90 720 1863 Effects 12 | . . 2 . 7 3 Shutdowns 2 | . . 1 . 1 . Energy Bleed 3 | . . . . 1 2 Interference 4 | . . 1 . 3 . Matter Decay 1 | . . . . 1 . Short Circuit 2 | . . . . 1 1 Siege Activations . | . . . . . . Martial Activations . | . . . . . . Shielding Activations . | . . . . . . Robots Disrupted . | . . . . . . Combat Hostiles . | . . . . . . Robots Corrupted . | . . . . . . Combat Hostiles . | . . . . . . Parts Fried . | . . . . . . Impact Corruptions . | . . . . . . Robots Melted . | . . . . . . Combat Hostiles . | . . . . . . Parts Melted 4 | . 2 1 . . 1 Heat Transferred 5685 | 75 675 1295 407 1394 1839 Parts Sabotaged . | . . . . . . Parts Stolen . | . . . . . . Parts Stripped . | . . . . . . Power Chain Reactions 2 | . . . . 1 1 Alert | -11 -10 -9 -9 -8 -7 ------- Run | Yrd Mat Mat Min Mat Fac Maximum Alert Level 1 | . . 1 . . . Low Security (%) 93 | 100 100 44 100 100 100 Level 1 6 | . . 55 . . . Level 2 . | . . . . . . Level 3 . | . . . . . . Level 4 . | . . . . . . Level 5 . | . . . . . . High Security . | . . . . . . Max Security . | . . . . . . Peak Influence 266 | 20 85 266 145 108 175 Initial 100 | . 13 32 100 36 18 Average 61 | 3 22 161 106 36 57 Influence Increases 2195 | 20 303 495 174 450 753 Destroy 0b10 Robot/C 1380 | 20 220 380 120 260 380 Destroy 0b10 Robot/NC 55 | . 5 15 . 35 . Destroy Leader 270 | . 52 54 20 64 80 Disable Machine 120 | . . 30 . 30 60 Destroy Structure 160 | . 26 16 19 61 38 Lose Combat Pursuer 210 | . . . 15 . 195 Influence Decreases 2051 | . 246 315 337 502 651 Entered New Map 291 | . 7 45 157 58 24 Time Decay 1295 | . 179 230 140 384 362 Lost Part 405 | . . 40 40 60 265 Purge Threat 60 | . 60 . . . . Squads Dispatched 11 | . 3 1 . 3 4 Investigation 1 | . . . . 1 . Extermination 2 | . . . . . 2 Reinforcement 8 | . 3 1 . 2 2 Assault . | . . . . . . Garrison . | . . . . . . Intercept . | . . . . . . Searches Triggered . | . . . . . . Construction Impeded 2 | . . . . . 2 Haulers Reinforced . | . . . . . . Active Scanning Responses . | . . . . . . Cargo Convoy Interrupts . | . . . . . . Stealth | -11 -10 -9 -9 -8 -7 --------- Run | Yrd Mat Mat Min Mat Fac Distress Signals 6 | . 1 2 . 2 1 Communications Jammed . | . . . . . . Distress Signals . | . . . . . . Times Spotted 145 | 1 17 35 10 28 54 Peak Tracking Total 8 | 1 3 6 4 5 8 Tactical Retreats 22 | . . 1 2 4 15 ECM-based Alert Blocks 35 | . . 4 3 5 23 Traps | -11 -10 -9 -9 -8 -7 ------- Run | Yrd Mat Mat Min Mat Fac Traps Triggered 7 | . . 1 . 4 2 Indirectly . | . . . . . . Trap Hack Attempts . | . . . . . . Triggered . | . . . . . . Disarmed . | . . . . . . Reprogrammed . | . . . . . . Reused . | . . . . . . Traps Extracted . | . . . . . . Installed . | . . . . . . Triggered . | . . . . . . Machines | -11 -10 -9 -9 -8 -7 ---------- Run | Yrd Mat Mat Min Mat Fac Machines Disabled 8 | . . 2 . 2 4 Max in Single Turn 2 | . . 1 . 1 2 Machines Repaired . | . . . . . . Machines Dismantled . | . . . . . . Machines Sabotaged . | . . . . . . Overloaded Fab Kills . | . . . . . . Hacking | -11 -10 -9 -9 -8 -7 --------- Run | Yrd Mat Mat Min Mat Fac Machines Accessed 3 | . 1 1 . 1 . Terminals 3 | . 1 1 . 1 . Fabricators . | . . . . . . Repair Stations . | . . . . . . Recycling Units . | . . . . . . Scanalyzers . | . . . . . . Garrison Access . | . . . . . . Total Hacks 5 | . 1 3 . 1 . Successful 4 | . 1 2 . 1 . Failed 1 | . . 1 . . . Catastrophic . | . . . . . . Database Lockouts . | . . . . . . Manual . | . . . . . . Terminals 5 | . 1 3 . 1 . Fabricators . | . . . . . . Repair Stations . | . . . . . . Recycling Units . | . . . . . . Scanalyzers . | . . . . . . Garrison Access . | . . . . . . Terminal Hacks 4 | . 1 2 . 1 . Record 3 | . . 2 . 1 . Unreport Threat 1 | . 1 . . . . Fabricator Hacks . | . . . . . . Repair Station Hacks . | . . . . . . Recycling Unit Hacks . | . . . . . . Scanalyzer . | . . . . . . Garrison Access Hacks . | . . . . . . Unauthorized Hacks . | . . . . . . Terminals . | . . . . . . Fabricators . | . . . . . . Repair Stations . | . . . . . . Recycling Units . | . . . . . . Scanalyzers . | . . . . . . Garrison Access . | . . . . . . Data Cores Recovered . | . . . . . . Used . | . . . . . . Hacking Detections . | . . . . . . Full Trace Events . | . . . . . . Feedback Events . | . . . . . . Feedback Blocked . | . . . . . . Robot Schematics Acquired . | . . . . . . Robots Built . | . . . . . . Authchips . | . . . . . . Time . | . . . . . . Total Robot Build Rating . | . . . . . . Part Schematics Acquired . | . . . . . . Parts Built . | . . . . . . Authchips . | . . . . . . Time . | . . . . . . Total Part Build Rating . | . . . . . . Part Studies Acquired . | . . . . . . Parts Repaired . | . . . . . . Time . | . . . . . . Parts Recycled . | . . . . . . Recycled Matter . | . . . . . . Retrieved Matter . | . . . . . . Retrieved Components . | . . . . . . Parts Scanalyzed . | . . . . . . Part Schematics Acquired . | . . . . . . Parts Damaged . | . . . . . . Bothacking | -11 -10 -9 -9 -8 -7 ------------ Run | Yrd Mat Mat Min Mat Fac Used RIF Installer . | . . . . . . Robots Hacked . | . . . . . . Non-combat . | . . . . . . Combat . | . . . . . . Robot Hacks Applied . | . . . . . . Relay Couplers Released . | . . . . . . Fabnet Peak Effective % . | . . . . . . Robots Rewired . | . . . . . . Allies Hacked . | . . . . . . Hacks Repelled . | . . . . . . Allies | -11 -10 -9 -9 -8 -7 -------- Run | Yrd Mat Mat Min Mat Fac Total Allies . | . . . . . . Largest Group . | . . . . . . Highest-Rated Group . | . . . . . . Highest-Rated Ally . | . . . . . . Total Orders . | . . . . . . Ally Attacks . | . . . . . . Total Damage . | . . . . . . Kills . | . . . . . . Allies Corrupted . | . . . . . . Allies Melted . | . . . . . . Intel | -11 -10 -9 -9 -8 -7 ------- Run | Yrd Mat Mat Min Mat Fac Active Infowar (turns) 2141 | . . 33 246 1278 584 ECM 2141 | . . 33 246 1278 584 Robot Analysis Total . | . . . . . . Derelict Logs Recovered . | . . . . . . Drone Launches . | . . . . . . Drone Recoveries . | . . . . . . Exploration | -11 -10 -9 -9 -8 -7 ------------- Run | Yrd Mat Mat Min Mat Fac Turns Passed 3980 | 98 423 488 295 1345 1331 Spaces Moved 2067 | 81 246 239 317 469 715 Core 45 | 29 . . . . 16 Treads 144 | . . . . . 144 Legs 1561 | 52 246 202 38 468 555 Wheels 1 | . . . . 1 . Hover . | . . . . . . Flight 316 | . . 37 279 . . Fastest Speed 37 | 50 120 37 37 120 50 Average Speed 145 | 94 120 123 71 234 142 Slowest Speed 400 | 120 120 190 200 400 350 Overloaded Moves . | . . . . . . Propulsion Burnouts . | . . . . . . Robots Hopped . | . . . . . . Potential Cave-ins . | . . . . . . Cave-ins Triggered . | . . . . . . Exploration Rate (%) 33 | 6 48 30 58 40 17 Regions Visited 5 Branch Regions 1 Pre-discovered Areas . | . . . . . . Known Exits Taken . | . . . . . . Unknown Exits Taken 5 | 1 1 1 1 1 . Scrap Searched . | . . . . . . Spaces Dug . | . . . . . . Terrain Destroyed 183 | . 32 17 21 72 41 Melee . | . . . . . . Projectile 90 | . . . . 64 26 AOE 93 | . 32 17 21 8 15 Terrain Rammed . | . . . . . . Walls Destroyed . | . . . . . . Machines Disabled . | . . . . . . Actions | -11 -10 -9 -9 -8 -7 --------- Run | Yrd Mat Mat Min Mat Fac Total 2606 | 98 319 353 360 610 866 Wait 110 | . 14 48 . 37 11 Move 2062 | 80 245 238 316 468 715 Hop . | . . . . . . Pick Up 81 | 10 13 9 6 24 19 Fast Attach 8 | . . 3 2 . 3 Attach 65 | 6 2 7 10 17 23 Detach 3 | . . . . 3 . Swap 12 | . 6 4 . 1 1 Drop 32 | . 8 8 6 7 3 Fire 229 | 2 31 36 20 53 87 Melee . | . . . . . . Ram . | . . . . . . Kick 3 | . . . . . 3 Crush 1 | . . . . . 1 Escape Stasis . | . . . . . . Rewire . | . . . . . . Trap . | . . . . . . Miscellaneous . | . . . . . . Route ------- -11/Scrapyard -10/Materials -9/Materials -9/Mines -8/Materials -7/Factory (discovered 1 exit: [*Fac]) History --------- Turn | Location | Event 2 | -11/Scrapyard | Met Revision 17 71 | -11/Scrapyard | Discovered new exit (range 8) 99 | -11/Scrapyard | Entered Materials 305 | -10/Materials | Build established: Mutant 500 | -10/Materials | Discovered new exit (range 11) 522 | -10/Materials | Entered another Materials area 522 | -9/Materials | Evolved 2 slots: Utility x1, Weapon x1 761 | -9/Materials | Destroyed 8 combat bots 940 | -9/Materials | Discovered new exit (range 15) 1010 | -9/Materials | Entered Mines 1043 | -9/Mines | Met a Derelict bent on vengeance 1077 | -9/Mines | Received a Rocket Launcher from a helpful Derelict 1166 | -9/Mines | Discovered new exit (range 4) 1223 | -9/Mines | Core integrity fell below 50% 1259 | -9/Mines | Lost 4 parts (1n2u1w) 1305 | -9/Mines | Entered Materials 1305 | -8/Materials | Evolved 2 slots: Utility x1, Weapon x1 1627 | -8/Materials | Build established: Scavenger-Tank 1796 | -8/Materials | Lost 3 parts (1p1n1u) 2178 | -8/Materials | Build established: Scavenger-Gunner 2482 | -8/Materials | Discovered new exit (range 3) 2650 | -8/Materials | Entered Factory 2650 | -7/Factory | Evolved 2 slots: Propulsion x1, Utility x1 2998 | -7/Factory | Lost 6 parts (1p3u2w) 3089 | -7/Factory | Lost 4 parts (1n1u2w) 3174 | -7/Factory | Lost 3 parts (2n1u) 3403 | -7/Factory | Core integrity fell below 50% 3470 | -7/Factory | Lost 4 parts (1n1u2w) 3554 | -7/Factory | Discovered new exit (range 13) 3811 | -7/Factory | Core integrity fell below 20% 3981 | -7/Factory | Destroyed by G-47 Trooper with Particle Gun Last Messages --------------- 03832_ Overheating: Energy bleed (-14). 03835_ K-01 Serf collects debris. 03836_ Overheating: Energy bleed (-19). 03838_ Acquired 21 matter. 03839_ Acquired 3 matter. 03840_ Acquired 5 matter. 03878_ Aluminum Leg destroyed. 03908_ System corrupted: IFF burst signal emitted. 03912_ G-47 Trooper suffers critical hit (Burn). 03915_ U-05 Engineer builds a Wall. 03926_ Adv. Assault Cannon destroyed. 03930_ K-01 Serf cleans the Pressure Siphon. 03943_ Aluminum Leg destroyed. 03960_ Hrd. Light Armor Plating destroyed. 03968_ G-47 Trooper destroyed. 03974_ System corrupted: Heat flow error (+203). 03979_ Particle Gun destroyed. 03980_ Mic. Nuclear Core broken. 03980_ Overheating: Short circuit. Map ----- +----------------------------------------------------+ | ?????????????????????????????????+ "" ## """" | | ?????????????????????????????????#^ " ## """" | | ?????????????????????????????????# "F ## """"? | | ???????????????????????????####### "" ## """"? | | ???????????????????????????# # ## ? | | ???????????????????????????# # % = ########? | | ???????????????????????????# # = #?# #???? | | ???????????????????????????# !! # =! ### ###?? | | ???????????????????????? # ! # """ # #?? | | ?????????????????????? # # T""=# #?? | | ?????????????????????# # # """ ""# # #?? | | ?????????????????????# # # """ ###/# ##? | | ?????????????????????# # # """ !# * =*]#? | | ?????????????????????+ # # """ # #? | | ?????????????????????# # # # [ #? | | ?????????????????????# # + """ # #? | | ????????????????????## ####### """ # #? | | ????????????????????# # """ # #? | | ????????????????????# %"" # #? | | ????????????????????# # #? | | ##??????????#???????# + #? | | #?########## ?????# #### """ #? | | #?#! ! # #### #??# """ "+? | | #?# """ + ## #??# """"%# | | #?# * """ #???# g######### #??# "# | | #?# """ #???# @######??# ######+####? | | #?# #??# # #??# % #???? | | #### """ #??#T # #??# #???? | | !% / ! """ #??## # #### #???? | | #### """ #???# ## ## + % #???? | | ???# #???# ## ## # ######## #???? | | ???#####/######## ## ## %# #????### #???? | | ?????# ## ## # #??????# #???? | | ?????# ##%## # #??????# #???? | | ?????# ##%####### #??????# #???? | | ?????# """ """ ## %= ######?# #???? | | ?????# """ """ ##+####### # # #???? | | ?????# """ """ # # # # %] # """ | | ?##### # """"# # """ + / """ | | ## """ """ # """"# # """ # ######## | | """ """ # """"# # """ # #?#! | | """ """ # """"# # ?# #?# " " | | + """"# ######?#%#?# " " | | """ """ # """"# #??????# #?# " " | | """ """ # # #??????# #?# " " | | """ """ # # ######## #?# " " | | ^ ########## ### " " | | """ * # " " | | """ + " " | | """ "" "" """ """ # " " | +----------------------------------------------------+ Best States ------------- Heat Dissipation 53 Energy Generation 18 Energy Capacity 275 Matter Stores 300 Matter Capacity 300 Sight Range 16 Terrain Scan Density 10 ECM Strength 1 Additional Mass Support 6 Armor Coverage 375 Resistance: EX 25 Weapon Shielding 33 Evasion (%) 63 Targeting Accuracy 5 Recoil Reduction 2 Item Schematics ----------------- None Robot Schematics ------------------ None Fabricated ------------ Nothing Repaired ---------- Nothing Studied --------- None Alien Tech Used ----------------- None Achievements -------------- Crack Shot DATA ERROR: Steam Global Achievement% Everything Is Under Control Storm Trooper Challenges ------------ None Game ------ Seed MiniCoolingTorch Manual? 0 Play Time 01:09:25 Cumulative 3.7 hours Start 2025.10.26 @ 02:16:42 End 2025.10.29 @ 23:23:05 Sessions 3 Manual Loads 0 Difficulty Rogue Special Mode None Game No. 2 Rogue 2 Adventurer 0 Explorer 0 Win Type - Total 0 Types 0/0/0/0/0/0/0/0/0/0 Lore% 1 Gallery% 7 Achievement% 6 Wizard Run 0 Options --------- Layout 1 ASCII 0 Keyboard 0 Movement Mouse Keybinds 0 Fullscreen 2 Font 24/Smallcaps Map View 50x35 Zoom Use 0% Tactical HUD 1 Map Filters NONE Filters NONE Steam 1 RUN: 1a248af8-08d9-4739-abde-084d6ee15c7b